Workbook

Sheet Rozpočet 2022
A1: Obec Džbánov, IČO: 580961, počet obyvatel: 360 | E1: Rozpočet 2021 | F1: Očekávaná skutečnost rozpočtu 2021
C2: Saldo příjmů a výdajů | D2: =+D220 -> -0.4 | E2: =+E226 -> 0 | F2: =F55-F218 -> 2673
A4: Účet | B4: Skup | C4: PŘÍJMY: | D4: v tis. Kč | E4: v tis. Kč | F4: v tis.Kč
A5: 0 | B5: 1111 | C5: DP FO ze záv.čin. | D5: 542
A6: 0 | B6: 1112 | C6: DP FO OSVČ | D6: 33.7
A7: 0 | B7: 1113 | C7: DP FO vybíraná srážkou podle zvláštní sazby | D7: 132.7
A8: 0 | B8: 1121 | C8: DP PO | D8: 991.8
A9: 0 | B9: 1211 | C9: DPH | D9: 2779.8
A10: 0 | C10: DP FO ze záv.čin. Podle počtu zaměstnanců | D10: 18.4
A11: 0 | B11: 1345 | C11: Poplatek za likvidaci komunálního odpadu | D11: 212
A12: 0 | B12: 1341 | C12: Poplatek ze psů | D12: 8
A13: 0 | B13: 1344 | C13: Poplatek ze vstupného | D13: 1
B14: 1381 | C14: Odvod výtěžků z provoz.loterií | D14: 25
A15: 0 | B15: 1361 | C15: Správní poplatky | D15: 2
A16: 0 | B16: 1511 | C16: Daň z nemovitostí | D16: 500
C17: Daňové příjmy c e l k e m | D17: =SUM(D5:D16) -> 5246.4 | E17: 4811 | F17: 5320
C18: Dotace z PRV (Pardubický kraj)
A19: 0 | B19: 4111 | C19: Neinv.dotace z VPS SR
A20: 0 | B20: 4112 | C20: Neinv.dotace ze SR-s.d.vztah | D20: 84.2
A21: 0 | B21: 4122 | C21: Neinv.přijaté transfery od krajů | D21: 0
A22: 0 | B22: 4222 | C22: Invest.přijaté transf.od krajů | D22: 0
C23: Přijaté dotace c e l k e m | D23: =SUM(D18:D22) -> 84.2 | E23: 86 | F23: 86
A24: 2122 | B24: 2111 | C24: Příjmy z poskytování výrobků a služeb | D24: 4
A25: 2122 | C25: Sběr a zprac.druhot.surovin | D25: =+D24 -> 4 | E25: 2 | F25: 8
A26: 2321 | B26: 2111 | C26: Příjmy z poskytování služeb (stočné) | D26: 70
A27: 2321 | C27: Odvádění a čištění odp.vod | D27: =SUM(D26) -> 70 | E27: 55 | F27: 58
A28: 3319 | B28: 2324 | C28: Přij.nekapit.příspěvky, náhrady | D28: 0
A29: 3399 | C29: Ost.záležitosti kultury | D29: =SUM(D28) -> 0 | E29: 0 | F29: 2
A30: 3613 | B30: 2132 | C30: Příjmy z pronájmu ost.nemovitostí | D30: 10
A31: 3613 | C31: Nebytové hospodářství | D31: =SUM(D30:D30) -> 10 | E31: 20 | F31: 8
A32: 3631 | C32: Veřejné osvětlení | D32: 0 | E32: 0 | F32: 0
A33: 3639 | B33: 2131 | C33: Příjmy z pronájmu pozemků | D33: 20
A34: 3639 | B34: 3111 | C34: Příjmy z prodeje pozemků | D34: 0
A35: 3639 | C35: Komun.služby a úz.rozvoj j.n. | D35: =D33+D34 -> 20 | E35: 20 | F35: 45
A36: 3722 | B36: 2111 | C36: Příjmy z poskytování služeb (svoz odpadu firem) | D36: 0
A37: 3722 | C37: Sběr a svoz komunálního odpadu | D37: =SUM(D36) -> 0 | E37: 0 | F37: 0
A38: 3725 | B38: 2324 | C38: Přij.nekap.příspěvky, náhrady | D38: 60
A39: 3725 | C39: Využív.a zneškodň.komun.odpadu | D39: =SUM(D38) -> 60 | E39: 50 | F39: 62
A40: 6171 | B40: 2111 | C40: Příjmy z poskytování služeb | D40: 40
A41: 6171 | B41: 2133 | C41: Příjmy z pronájmu movitých věcí | D41: 2
A42: 6171 | C42: Činnost místní správy | D42: =+D40+D41 -> 42 | E42: 42 | F42: 859
A43: 6310 | B43: 2141 | C43: Příjmy z úroků | D43: 1
A44: 6310 | B44: 2142 | C44: Př. Z podílu na zisku a divid. | D44: 0
A45: 6310 | C45: Obec.příj.a výd.z fin.operací | D45: =+D43+D44 -> 1 | E45: 1 | F45: 1
A46: 6409 | B46: 2142 | C46: Příjmy z dividend
A47: 6409 | C47: Ostatní činnosti j.n. | D47: =SUM(D46) -> 0 | E47: 0 | F47: 0
C48: Nedaňové příjmy c e l k e m | D48: =D25+D27+D31+D35+D39+D42+D45 -> 207 | E48: 190 | F48: 1043
A51: 1031 | B51: 2111 | C51: Příjmy z poskytování výrobků a služeb (lesy) | D51: 15 | E51: 15
A52: 1031 | C52: Pěstební činnost | D52: =SUM(D51) -> 15 | E52: 15 | F52: 24
C55: PŘIJMY CELKEM | D55: =+D48+D23+D17+D52 -> 5552.6 | E55: 5102 | F55: 6473
C57: Převod z vlastních rezerv - vlastní financování | D57: 10288 | E57: 7374 | F57: 0
C59: PŘÍJMY CELKEM vč. vlastního financování | D59: =+D55+D57 -> 15840.6 | E59: 12476 | F59: =F55+F57 -> 6473
A66: Účet | B66: Skup | C66: VÝDAJE: | D66: v tis. Kč | E66: v tis. Kč | F66: v tis. Kč
A67: 1031 | B67: 5169 | C67: nákup služeb | D67: 219
A68: 1031 | B68: Celk | C68: Pěstební činnost: | D68: =SUM(D67) -> 219 | E68: 219 | F68: 157
A69: 1099 | B69: 5222 | C69: Neinvestiční transfery spolkům | D69: 10
A70: 1099 | B70: Celk | C70: Ostatní výdaje na lesní hospodářství | D70: =SUM(D69) -> 10 | E70: 10 | F70: 10
A71: 2122 | B71: 5169 | C71: Nákup ostatních služeb | D71: 2
A72: 2122 | B72: Celk | C72: Sběr a zprac.druhot.surovin | D72: =+D71 -> 2 | E72: 2 | F72: 2
A73: 2141 | B73: 5213 | C73: Neinv. transfér podnik. subjektům | D73: 250
A74: 2141 | B74: Celk. | C74: Vnitřní obchod | D74: =SUM(D73) -> 250 | E74: 250 | F74: 170
A75: 2212 | B75: 5139 | C75: nákup materiálu j.n. | D75: 20
A76: 2212 | B76: 6122 | C76: stroje, přístroje, zařízení | D76: 0
A77: 2212 | B77: 5137 | C77: DHDM | D77: 20
A78: 2212 | B78: 5169 | C78: Nákup ostatních služeb | D78: 600
A79: 2212 | B79: 5171 | C79: opravy a udržování | D79: 550
A80: 2212 | B80: 6121 | C80: Budovy, haly, stavby | D80: 1000
A81: 2212 | B81: Celk | C81: Silnice: | D81: =+D75+D76+D77+D78+D79+D80 -> 2190 | E81: 1545 | F81: 50
A82: 2321 | B82: 5169 | C82: Nákup ostatních služeb | D82: 25
A83: 2321 | B83: 5171 | C83: opravy a udržování | D83: 750
A84: 2321 | B84: Celk | C84: Odvádění a čištění vod | D84: =SUM(D82:D83) -> 775 | E84: 770 | F84: 400
A85: 3113 | B85: 5321 | C85: Neinvestiční transfery obcím | D85: 0
A86: 3113 | B86: Celk | C86: Základní školy: | D86: =+D85 -> 0 | E86: 0 | F86: 0
A87: 3314 | B87: 5136 | C87: knihy, tiskoviny | D87: 5
A88: 3314 | B88: 5137 | C88: DHDM | D88: 5
A89: 3314 | B89: 5139 | C89: nákup materiálu j.n. | D89: 7
A90: 3314 | B90: 5169 | C90: služby knihovny VM | D90: 10
A91: 3314 | B91: Celk | C91: Činnosti knihovnické: | D91: =SUM(D87:D90) -> 27 | E91: 22 | F91: 18
A92: 3319 | B92: 5137 | C92: DHDM | D92: 0
A93: 3319 | B93: 5139 | C93: nákup materiálu j.n. | D93: 20
A94: 3319 | B94: 5151 | C94: studená voda | D94: 5
A95: 3319 | B95: 5153 | C95: plyn | D95: 300
A96: 3319 | B96: 5154 | C96: elektrická energie | D96: 60
A97: 3319 | B97: 5169 | C97: nákup služeb | D97: 45
A98: 3319 | B98: 5171 | C98: opravy a udržování | D98: 20
A99: 3319 | B99: Celk | C99: Ost.záležitosti kultury | D99: =SUM(D92:D98) -> 450 | E99: 160 | F99: 95
A100: 3341 | B100: 5169 | C100: nákup služeb | D100: 2
A101: 3341 | B101: 5171 | C101: opravy a udržování | D101: 30
A102: 3341 | B102: 5041 | C102: poskyt.neinv.příspěvky, náhrady (poplatek OSA - hudební reprodukce) | D102: 10
A103: 3341 | B103: Celk | C103: Rozhlas a televize | D103: =SUM(D100:D102) -> 42 | E103: 42 | F103: 25
A104: 3419 | B104: 5222 | C104: neinv.transf.občan.sdružením (SK) | D104: 15
A105: 3419 | B105: Celk | C105: Ostatní tělovýchovná činnost | D105: =SUM(D104) -> 15 | E105: 15 | F105: 0
A106: 3421 | B106: 5169 | C106: Ostatní služby hřiště | D106: 5
A107: 3421 | B107: 5139 | C107: Nákup ostatního materiálu | D107: 2
A108: 3421 | B108: 5171 | C108: Opravy a udržování | D108: 950
A109: 3421 | B109: Celk | C109: Využití volného času dětí a mládeže | D109: =SUM(D106:D108) -> 957 | E109: 27 | F109: 7
A110: 3429 | B110: 5222 | C110: neinv.transf.spolků | D110: 4
A111: 3429 | B111: Celk | C111: Ostatní zájmová činnost a rekreace | D111: =SUM(D110) -> 4 | E111: 4 | F111: 0
A112: 3613 | B112: 5169 | C112: nákup služeb | D112: 250
A113: 3613 | B113: 5171 | C113: opravy a udržování | D113: 160
A114: 3613 | B114: 6121 | C114: Budovy, haly, stavby | D114: 4400
A115: 3613 | B115: Celk | C115: Nebytové hospodářství | D115: =SUM(D112:D114) -> 4810 | E115: 5090 | F115: 260
A116: 3631 | B116: 5137 | C116: DHDM | D116: 0
A117: 3631 | B117: 6121 | C117: Stavba | D117: 40
A118: 3631 | B118: 5137 | C118: DHDM | D118: 10
A119: 3631 | B119: 5154 | C119: el. energie | D119: 200
A120: 3631 | B120: 5169 | C120: nákup služeb | D120: 15
A121: 3631 | B121: 5171 | C121: opravy a udržování | D121: 20
A122: 3631 | B122: Celk | C122: Veřejné osvětlení: | D122: =SUM(D117:D121) -> 285 | E122: 175 | F122: 80
A123: 3635 | B123: 6119 | C123: Ost. nákup dlouhodobého nehmotného majetku | D123: 0
A124: 3635 | B124: Celk | C124: Územní plánování | D124: =D123 -> 0 | E124: 0 | F124: 0
A125: 3639 | B125: 6122 | C125: stroje, přístroje, zařízení | D125: 0
A126: 3639 | B126: 6130 | C126: pozemky | D126: 1100
A127: 3639 | B127: Celk | C127: Komun.služby a úz.rozvoj j.n. | D127: =SUM(D125:D126) -> 1100 | E127: 1100 | F127: 5
A128: 3722 | B128: 5137 | C128: DHDM | D128: 0
A129: 3722 | B129: 5169 | C129: Nákup ostatních služeb | D129: 500
A130: 3722 | B130: Celk | C130: Sběr a svoz komunálních odpadů: | D130: =SUM(D128:D129) -> 500 | E130: 400 | F130: 400
A131: 3723 | B131: 5164 | C131: Nájemné | D131: 250
A132: 3723 | B132: Celk | C132: Nájemné za pozemek pod sběrným místem | D132: =D131 -> 250 | E132: 250 | F132: 0
A133: 3745 | B133: 5132 | C133: Ochranné pomůcky | D133: 2
A134: 3745 | B134: 5137 | C134: DHDM | D134: 350
A135: 3745 | B135: 5139 | C135: nákup materiálu j.n. | D135: 150
A136: 3745 | B136: 5151 | C136: studená voda | D136: 2
A137: 3745 | B137: 5156 | C137: PHM | D137: 35
A138: 3745 | B138: 5169 | C138: nákup služeb | D138: 300
A139: 3745 | B139: 5171 | C139: opravy a udržování | D139: 30
A140: 3745 | B140: Celk | C140: Péče o vzhled obcí a veřejnou zeleň | D140: =SUM(D133:D139) -> 869 | E140: 347 | F140: 370
A141: 3399 | B141: 5136 | C141: Výdaje na knihy a tisk | D141: 0
A142: 3399 | B142: 5139 | C142: nákup materiálu j.n. | D142: 35
A143: 3399 | B143: 5169 | C143: Nákup ostatních služeb | D143: 35
A144: 3399 | B144: 5175 | C144: pohoštění | D144: 60
A145: 3399 | B145: 5194 | C145: věcné dary | D145: 260
A146: 3399 | B146: 5222 | C146: neinv.transf.občan.sdružením (ČČK) | D146: 15
A147: 3399 | B147: Celk | C147: Ost.výd.související se soc.por | D147: =SUM(D141:D146) -> 405 | E147: 155 | F147: 70
A148: 4350 | B148: 5339 | C148: neinv. transf. cizím přízp. organizacím | D148: 10
A149: 4350 | B149: Celk | C149: Domovy pro seniory | D149: =D148 -> 10 | E149: 10 | F149: 0
A150: 4359 | B150: 5222 | C150: neinv. transféry spolkům | D150: 20
A151: 4359 | B151: Celk | C151: Ost. služby a činnosti v oblasti soc. péče | D151: =D150 -> 20 | E151: 10 | F151: 10
A152: 5213 | B152: 5903 | C152: Nákup ostatních služeb | D152: 80
A153: 5213 | B153: Celk | C153: Podpora krizového řízení a nouzového plánování | D153: =D152 -> 80 | E153: 80 | F153: 5
A154: 5512 | B154: 5132 | C154: Ochranné pomůcky pro hasiče | D154: 1
A155: 5512 | B155: 5137 | C155: DHDM | D155: 5
A156: 5512 | B156: 5139 | C156: nákup materiálu j.n. | D156: 5
A157: 5512 | B157: 5154 | C157: elektrická energie | D157: 20
A158: 5512 | B158: 5151 | C158: voda | D158: 1
A159: 5512 | B159: 5153 | C159: plyn | D159: 130
A160: 5512 | B160: 5156 | C160: PHM | D160: 15
A161: 5512 | B161: 5169 | C161: nákup služeb | D161: 3
A162: 5512 | B162: 5171 | C162: opravy a udržování | D162: 15
A163: 5512 | B163: 5173 | C163: cestovné
A164: 5512 | B164: 5222 | C164: neinv.transf.občan.sdružením (SDH) | D164: 15
A165: 5512 | B165: 6123 | C165: dopravní prostředky | D165: 0
A166: 5512 | B166: Celk | C166: PO - dobrovolná část | D166: =SUM(D154:D165) -> 210 | E166: 106 | F166: 140
A167: 6112 | B167: 5023 | C167: odměny členům zastupitelstva | D167: 550
A168: 6112 | B168: 5032 | C168: pov.pojistné na veř.zdrav.poj. | D168: 50
A169: 6112 | B169: Celk | C169: Zastupitelstva obcí | D169: =SUM(D167:D168) -> 600 | E169: 575 | F169: 575
A170: 6171 | B170: 5011 | C170: platy zaměstnanců v prac.poměru | D170: 400
A171: 6171 | B171: 5021 | C171: ost.osobní výdaje | D171: 100
A172: 6171 | B172: 5031 | C172: pov.pojistné na soc.pojištění | D172: 100
A173: 6171 | B173: 5032 | C173: pov.pojistné na veř.zdrav.poj. | D173: 40
A174: 6171 | B174: 5038 | C174: povinné pojistné na úraz.pojištění | D174: 3
A175: 6171 | B175: 5136 | C175: knihy, tiskoviny | D175: 2
A176: 6171 | B176: 5137 | C176: DHDM | D176: 40
A177: 6171 | B177: 5139 | C177: nákup materiálu j.n. | D177: 40
A178: 6171 | B178: 5151 | C178: studená voda | D178: 10
A179: 6171 | B179: 5153 | C179: plyn | D179: 270
A180: 6171 | B180: 5154 | C180: elektrická energie | D180: 120
A181: 6171 | B181: 5161 | C181: služby pošt | D181: 4
A182: 6171 | B182: 5162 | C182: služby telekomunikační | D182: 15
A183: 6171 | B183: 5163 | C183: služby peněžních ústavů | D183: 0
A184: 6171 | B184: 5166 | C184: konzult., porad.a právní služby | D184: 0
A185: 6171 | B185: 5168 | C185: služby zpracování dat | D185: 50
A186: 6171 | B186: 5166 | C186: konzult., porad.a právní služby | D186: 30
A187: 6171 | B187: 5167 | C187: služby školení a vzdělávání | D187: 15
A188: 6171 | B188: 5169 | C188: Nákup ostatních služeb | D188: 50
A189: 6171 | B189: 5171 | C189: opravy a udržování | D189: 10
A190: 6171 | B190: 5172 | C190: programové vybavení | D190: 15
A191: 6171 | B191: 5173 | C191: cestovné | D191: 2
A192: 6171 | B192: 5175 | C192: pohoštění | D192: 5
A193: 6171 | B193: 5182 | C193: poskytované zálohy vl.pokladně | D193: 0
A194: 6171 | B194: 5179 | C194: Ostatní nákupy j.n. | D194: 5
A195: 6171 | B195: 5321 | C195: Neinvestiční transfery obcím | D195: 5
A196: 6171 | B196: 5361 | C196: nákup kolků | D196: 20
A197: 6171 | B197: 5019 | C197: Refundace mezd | D197: 10
A198: 6171 | B198: 5039 | C198: Pojištění refundace mezd | D198: 4
A199: 6171 | B199: 6127 | C199: Kulturní předměty | D199: 150
A200: 6171 | B200: 5424 | C200: Náhrady mezd v době nemoci | D200: 10
A201: 6171 | B201: Celk | C201: Činnost místní správy: | D201: =SUM(D170:D200) -> 1525 | E201: 964 | F201: 850
A202: 6310 | B202: 5141 | C202: úroky vlastní | D202: 0
A203: 6310 | B203: 5163 | C203: služby peněžních ústavů | D203: 15
A204: 6310 | B204: Celk | C204: obec.příjmy a výdaje z fin.operací | D204: =+D202+D203 -> 15 | E204: 15 | F204: 10
A205: 6320 | B205: 5163 | C205: služby peněžních ústavů | D205: 60
A206: 6320 | B206: Celk | C206: Pojištění funkce nespec. | D206: =+D205 -> 60 | E206: 60 | F206: 60
A207: 6402 | B207: 5366 | C207: Výdaje z FV min..let kraj-obec | D207: 0 | E207: 0 | F207: 0
A208: 6409 | B208: 5329 | C208: ostatní neinv.transfery VR územ.ú. | D208: 60
A209: 6409 | B209: Celk | C209: Pojištění funkce nespec. | D209: =+D208 -> 60 | E209: 60 | F209: 8
A210: 6402 | B210: Celk | C210: Finanční vypořádání z min. let | D210: 11 | E210: 13 | F210: 23
A211: 6399 | B211: Celk | C211: Ostatní finanční operace | D211: 90 | E211: 0 | F211: 0
C213: Běžné výdaje
C214: Kapitálové výdaje
... 10 more rows

Sheet List1

Sheet List2

Sheet List3
